bitfinex/quotes_SOLUSD_20240808
["timestamp","ask_amount","ask_price","bid_price","bid_amount"]
[1723100208916,45.34,154.69,154.64,6.3859]
[1723100210805,28.14,154.72,154.64,6.3859]
[1723100211217,28.14,154.74,154.66,6.2443]
[1723100211491,28.14,154.74,154.67,16.274]
[1723100212825,45.17,154.73,154.67,16.274]
[1723100213199,0.17,154.72,154.67,16.274]
[1723100213410,273.6,154.82,154.68,6.2739]
[1723100213623,28.14,154.76,154.69,16.2252]
[1723100213831,28.14,154.76,154.7,6.2056]
[1723100214912,45.34,154.75,154.7,6.2056]
[1723100215644,2.57095099,154.82,154.73,16.5226]
[1723100215822,28.14,154.82,154.74,6.458]
[1723100216439,28.14,154.8,154.74,6.458]
[1723100217828,45.17,154.79,154.74,6.458]
[1723100218031,0.17,154.78,154.74,6.458]
[1723100218513,395.5582,154.85,154.74,6.458]
[1723100218826,28.14,154.82,154.74,7.75022678]
[1723100219026,28.14,154.82,154.74,6.458]
[1723100219809,45.34,154.81,154.74,6.458]
[1723100220015,45.34,154.81,154.75,15.2437]
[1723100221138,6.7602282,154.86,154.77,15.2437]
[1723100221339,28.14,154.86,154.78,52.78981657]
[1723100221523,28.14,154.84,154.78,6.4981]
[1723100222113,28.14,154.84,154.79,45.0]
[1723100222315,9.72975451,154.92,154.8,22.0262]
[1723100222316,28.14,154.86,154.8,22.0262]
[1723100223935,6.75754206,154.92,154.81,1.29189005]
[1723100224117,28.14,154.9,154.8,22.0262]
[1723100224317,28.14,154.88,154.81,51.4981]
[1723100224530,7.09188515,154.92,154.83,6.2303]
[1723100224531,6.75754206,154.92,154.83,6.2303]
[1723100224732,28.14,154.9,154.84,45.0]
[1723100224912,6.75754206,154.92,154.84,45.0]
[1723100225113,28.9549203,154.93,154.85,21.7584]
[1723100225414,0.8149203,154.93,154.85,21.7584]
[1723100225628,0.33434309,154.92,154.85,21.7584]
[1723100225825,28.47434309,154.92,154.85,21.7584]
[1723100226114,28.14,154.9,154.85,21.7584]
[1723100226435,0.17,154.89,154.85,21.7584]
[1723100227929,0.33434309,154.91,154.85,21.7584]
[1723100228521,28.14,154.9,154.85,21.7584]
[1723100229034,0.17,154.89,154.85,21.7584]
[1723100229241,1.14926339,154.93,154.85,21.7584]
[1723100229242,0.8149203,154.93,154.85,21.7584]
[1723100229417,0.8149203,154.93,154.85,15.5281]
[1723100229740,0.8149203,154.93,154.86,51.2431]
[1723100230445,6.4519,155.0,154.9,6.2431]
[1723100230615,28.14,154.99,154.9,6.2431]
[1723100231038,28.14,154.97,154.9,6.2431]
[1723100231244,9.35453082,155.0,154.94,28.14]
[1723100231447,0.8149203,155.08,154.96,6.2514]
[1723100231740,28.9549203,155.08,154.97,93.14]
[1723100231918,0.8149203,155.08,154.97,93.14]
[1723100232122,28.4549203,155.08,154.98,7.54140629]
[1723100232318,0.3149203,155.08,155.0,28.14]
[1723100232517,0.3149203,155.08,155.01,45.0]
[1723100232722,0.3149203,155.08,154.99,21.8631]
[1723100232954,0.3149203,155.08,155.0,45.0]
[1723100233449,28.14,155.07,154.99,21.8631]
[1723100233654,0.3149203,155.08,155.0,45.0]
[1723100234416,0.3149203,155.08,154.99,21.8631]
[1723100235059,0.64926339,155.08,154.99,21.8631]
[1723100235240,36.3149203,155.08,154.99,21.8631]
[1723100235439,36.0,155.05,154.99,6.2514]
[1723100235953,45.34,155.04,154.99,6.2514]
[1723100236464,51.79,155.04,154.99,6.2514]
[1723100236637,6.4503,155.03,154.99,6.2514]
[1723100236840,0.34,155.02,154.99,6.2514]
[1723100237534,0.34,155.03,154.99,6.2514]
[1723100238051,36.0,155.02,154.94,6.1335]
[1723100238229,45.34,155.01,154.94,6.1335]
[1723100238561,6.4517,155.0,154.94,6.1335]
[1723100238769,45.34,154.99,154.94,6.1335]
[1723100239131,0.34,154.99,154.94,6.1335]
[1723100240550,6.792,154.99,154.94,6.1335]
[1723100240739,6.4528,154.97,154.94,6.1335]
[1723100240940,0.34,154.96,154.94,6.1335]
[1723100241140,0.17,154.96,154.94,6.1335]
[1723100242064,0.34,154.97,154.94,6.1335]
[1723100242369,0.17,154.96,154.94,6.1335]
[1723100242561,6.6224,154.98,154.94,6.1335]
[1723100242739,6.6228,154.97,154.94,6.1335]
[1723100243071,0.17,154.96,154.94,6.1335]
[1723100243243,6.6233,154.96,154.94,6.1335]
[1723100243442,6.6233,154.96,154.88,16.2157]
[1723100243443,6.4543,154.94,154.89,6.2937]
[1723100243664,36.34,154.93,154.89,6.2937]
[1723100243842,0.17,154.92,154.89,6.2937]
[1723100244043,0.34,154.92,154.89,6.2937]
[1723100244236,0.17,154.92,154.89,6.2937]
[1723100244440,389.1,154.97,154.89,6.2937]
[1723100244641,0.17,154.96,154.89,6.2937]
[1723100245466,389.1,154.97,154.89,6.2937]
[1723100246270,6.4532,154.96,154.89,6.2937]
[1723100246569,6.4537,154.95,154.89,6.2937]
[1723100246870,0.34,154.94,154.89,6.2937]
[1723100247338,42.4516,155.0,154.89,6.2937]
[1723100247537,42.4516,155.0,154.9,45.0]
[1723100248666,0.34,154.99,154.9,45.0]
[1723100249848,0.67434309,154.99,154.9,45.0]
[1723100250475,0.34,154.99,154.9,45.0]
[1723100250851,6.4533,154.96,154.89,6.2937]
[1723100251051,0.34,154.95,154.89,6.2937]
[1723100251770,0.34,154.96,154.89,6.2937]
[1723100251955,36.0,154.97,154.89,6.2937]
[1723100253552,0.17,154.96,154.89,6.2937]
[1723100254267,0.34,154.96,154.89,6.2937]
[1723100258049,6.0,155.01,154.91,6.3186]
[1723100258261,6.33434309,155.01,154.92,45.0]
[1723100258468,6.0,155.01,154.92,45.0]
[1723100258778,12.4512,155.01,154.92,45.0]
[1723100258961,6.0,155.01,154.92,45.0]
[1723100259953,0.33434309,155.0,154.92,45.0]
[1723100260154,6.0,155.01,154.92,45.0]
[1723100260361,0.67434309,155.0,154.92,45.0]
[1723100260652,0.34,155.0,154.91,6.3186]
[1723100260856,51.7919,155.0,154.91,6.3186]
[1723100261052,0.34,155.0,154.91,6.3186]
[1723100261284,51.7919,155.0,154.91,6.3186]
[1723100261458,6.4521,154.99,154.91,6.3186]
[1723100261658,7.12684309,154.98,154.91,6.3186]
[1723100261890,0.67434309,154.98,154.91,6.3186]
[1723100262256,0.34,154.98,154.91,6.3186]
[1723100262767,51.7925,154.98,154.91,6.3186]
[1723100263477,45.67434309,154.98,154.91,6.3186]
[1723100263783,389.1,154.97,154.91,6.3186]
[1723100263967,45.34,154.96,154.91,6.3186]
[1723100265307,45.34,154.96,154.87,6.3117]
[1723100265308,81.34,154.96,154.87,6.3117]
[1723100265497,0.33434309,154.95,154.87,6.3117]
[1723100265667,0.17,154.94,154.87,6.3117]
[1723100265867,0.34,154.94,154.87,6.3117]
[1723100266091,6.7941,154.94,154.87,6.3117]
[1723100266394,45.0,154.93,154.87,6.3117]
[1723100266567,0.34,154.92,154.87,6.3117]
[1723100267461,6.4565,154.89,154.83,6.5773]
[1723100267668,0.34,154.88,154.83,6.5773]
[1723100268184,6.7969,154.88,154.83,6.5773]
[1723100270591,36.33434309,154.87,154.79,6.1644]
[1723100270786,6.4583,154.84,154.79,6.1644]
[1723100270975,0.34,154.83,154.79,6.1644]
[1723100273176,0.17,154.83,154.79,6.1644]
[1723100273893,45.17,154.84,154.79,6.1644]
[1723100274471,0.17,154.83,154.79,6.1644]
[1723100278469,2.67431139,154.86,154.79,6.1644]
[1723100278668,425.1,154.87,154.79,6.1644]
[1723100278869,389.1,154.87,154.79,6.1644]
[1723100279489,389.1,154.87,154.8,1.29177475]
[1723100279695,389.1,154.87,154.79,6.1644]
[1723100280402,253.6,154.95,154.82,6.2112]
[1723100280600,6.4542,154.94,154.83,45.0]
[1723100280902,6.4546,154.93,154.83,45.0]
[1723100281201,42.75647776,154.94,154.84,6.2112]
[1723100281586,6.4546,154.93,154.84,6.2112]
[1723100282093,49.21057776,154.94,154.84,6.2112]
[1723100282301,6.4545,154.93,154.84,6.2112]
[1723100282713,6.455,154.92,154.84,6.2112]
[1723100283595,0.17,154.91,154.84,6.2112]
[1723100283799,0.17,154.92,154.85,45.0]
[1723100284095,36.0,154.97,154.88,6.29]
[1723100284494,42.75536919,154.97,154.88,6.29]
[1723100284673,6.4535,154.96,154.88,6.29]
[1723100284869,6.4541,154.94,154.88,6.29]
[1723100285273,0.34,154.93,154.88,6.29]
[1723100286580,6.7946,154.93,154.88,6.29]
[1723100287190,6.7946,154.93,154.78,1.29121263]
[1723100287191,36.0,154.9,154.79,22.2495]
[1723100287390,36.0,154.84,154.79,22.2495]
[1723100287589,6.457,154.87,154.79,22.2495]
[1723100287799,0.34,154.86,154.79,22.2495]
[1723100288105,0.17,154.86,154.8,1.29178436]
[1723100288300,0.17,154.86,154.79,22.2495]
[1723100290185,0.34,154.86,154.79,22.2495]
[1723100294702,0.67434309,154.86,154.79,22.2495]
[1723100294920,51.7976,154.86,154.79,22.2495]
[1723100295695,28.1,154.83,154.79,22.2495]
[1723100295895,0.34,154.82,154.79,22.2495]
[1723100298820,28.1,154.81,154.79,22.2495]
[1723100299022,0.34,154.8,154.79,22.2495]
[1723100303154,0.34,154.8,154.79,6.2103]
[1723100305558,28.44,154.8,154.75,16.4587]
[1723100305763,28.1,154.76,154.75,16.4587]
[1723100306071,28.27,154.8,154.75,16.4587]
[1723100306232,0.17,154.79,154.75,16.4587]
[1723100307951,0.34,154.79,154.75,16.4587]
[1723100310373,28.1,154.77,154.74,6.2593]
[1723100310667,28.1,154.75,154.74,6.2593]
[1723100310878,28.44,154.75,154.74,6.2593]
[1723100313339,56.54,154.75,154.7,0.5]
[1723100313540,28.1,154.71,154.7,0.5]
[1723100313744,28.1,154.72,154.7,0.5]
[1723100313963,0.34,154.71,154.7,0.5]
[1723100317077,45.34,154.71,154.7,0.5]
[1723100318250,51.8037,154.71,154.7,0.5]
[1723100319069,59.90468084,154.71,154.7,0.5]
[1723100319250,53.10663775,154.71,154.7,0.5]
[1723100319974,59.57033775,154.71,154.7,0.5]
[1723100320175,59.90468084,154.71,154.7,0.5]
[1723100320351,59.57033775,154.71,154.7,0.5]
[1723100321658,59.90468084,154.71,154.7,0.5]
[1723100322770,59.57033775,154.71,154.7,0.5]
[1723100323281,59.57033775,154.71,154.7,0.14]
[1723100323657,6.465,154.68,154.62,6.3607]
[1723100323852,28.1,154.64,154.62,6.3607]
[1723100324455,0.33434309,154.63,154.62,6.3607]
[1723100324651,28.1,154.64,154.62,6.3607]
[1723100325266,28.1,154.64,154.56,6.3685]
[1723100325586,28.1,154.62,154.56,6.3685]
[1723100325783,0.34,154.61,154.56,6.3685]
[1723100327083,0.17,154.61,154.56,6.3685]
[1723100327280,28.1,154.66,154.58,6.1795]
[1723100327489,0.17,154.65,154.58,6.1795]
[1723100328056,28.1,154.66,154.58,6.1795]
[1723100328463,28.1,154.64,154.58,6.1795]
[1723100329279,28.1,154.62,154.58,6.1795]
[1723100329485,0.17,154.61,154.58,6.1795]
[1723100329793,0.34,154.61,154.58,6.1795]
[1723100333186,28.1,154.6,154.58,6.1795]
[1723100333411,0.34,154.59,154.58,6.1795]
[1723100334080,0.34,154.59,154.55,0.8149203]
[1723100334306,28.1,154.57,154.55,0.8149203]
[1723100334485,0.34,154.56,154.55,0.8149203]
[1723100336903,45.34,154.56,154.55,0.8149203]
[1723100337494,0.34,154.56,154.55,0.8149203]
[1723100337904,45.34,154.56,154.55,0.8149203]
[1723100339383,0.34,154.56,154.55,0.8149203]
[1723100339609,417.2,154.59,154.55,0.8149203]
[1723100339994,389.1,154.59,154.55,0.8149203]
[1723100342115,0.17,154.58,154.55,0.8149203]
[1723100342612,0.34,154.58,154.55,0.8149203]
[1723100343581,0.67434309,154.58,154.55,0.8149203]
[1723100345990,45.67434309,154.58,154.55,0.8149203]
[1723100346798,52.14344309,154.58,154.55,0.8149203]
[1723100347003,45.67434309,154.58,154.55,0.8149203]
[1723100347813,28.1,154.57,154.55,0.8149203]
[1723100348003,45.67434309,154.56,154.55,0.8149203]
[1723100348195,45.34,154.56,154.55,0.8149203]
[1723100348932,51.8099,154.56,154.53,6.3947]
[1723100349092,28.1,154.55,154.53,6.3947]
[1723100349416,45.34,154.54,154.53,6.3947]
[1723100349591,45.34,154.54,154.44,22.8406]
[1723100349920,28.1,154.53,154.44,22.8406]
[1723100350219,0.17,154.52,154.44,22.8406]
[1723100350514,45.34,154.52,154.44,22.8406]
[1723100350714,28.1,154.51,154.44,22.8406]
[1723100350916,45.34,154.5,154.44,22.8406]
[1723100351219,0.34,154.5,154.44,22.8406]
[1723100351408,45.0,154.49,154.44,22.8406]
[1723100351601,0.34,154.48,154.44,22.8406]
[1723100353719,389.1,154.51,154.44,22.8406]
[1723100354722,389.1,154.51,154.45,28.1]
[1723100354888,389.1,154.51,154.44,22.8406]
[1723100355718,389.1,154.51,154.47,28.1]
[1723100355897,34.5688,154.59,154.47,28.1]
[1723100356098,0.33434309,154.58,154.47,28.1]
[1723100356500,28.1,154.55,154.46,6.3829]
[1723100356699,0.33434309,154.54,154.46,6.3829]
[1723100357114,14.09211751,154.57,154.46,6.3829]
[1723100357115,0.34,154.53,154.46,6.3829]
[1723100358100,0.34,154.54,154.46,6.3829]
[1723100358301,45.67434309,154.54,154.46,6.3829]
[1723100359696,0.67434309,154.54,154.46,6.3829]
[1723100359920,45.0,154.53,154.46,6.3829]
[1723100360105,0.34,154.52,154.46,6.3829]
[1723100360306,0.34,154.54,154.46,34.4829]
[1723100361214,0.33434309,154.58,154.47,21.6828]
[1723100361529,37.19826975,154.59,154.47,21.6828]
[1723100361715,0.33434309,154.58,154.47,21.6828]
[1723100362322,0.17,154.57,154.47,21.6828]
[1723100362495,0.67434309,154.57,154.47,21.6828]
[1723100363297,8.00981417,154.57,154.47,21.6828]
[1723100363510,45.0,154.56,154.47,21.6828]
[1723100363728,0.67434309,154.55,154.47,21.6828]
[1723100363924,0.34,154.55,154.47,21.6828]
[1723100366538,0.33434309,154.54,154.47,21.6828]
[1723100366839,0.34,154.53,154.47,21.6828]
[1723100367129,0.33434309,154.52,154.47,21.6828]
[1723100367332,389.1,154.57,154.47,21.6828]
[1723100367917,0.33434309,154.56,154.47,21.6828]
[1723100368411,423.6696,154.57,154.47,21.6828]
[1723100368613,0.33434309,154.56,154.47,21.6828]
[1723100368813,417.2,154.57,154.47,21.6828]
[1723100369307,0.33434309,154.56,154.47,21.6828]
[1723100369920,0.34,154.55,154.47,21.6828]
[1723100370637,35.24474309,154.55,154.47,21.6828]
[1723100370836,51.4708,154.54,154.47,21.6828]
[1723100371042,6.8112,154.53,154.47,21.6828]
[1723100371209,45.0,154.52,154.47,21.6828]
[1723100371413,0.34,154.51,154.47,21.6828]
[1723100373336,0.67434309,154.51,154.47,21.6828]
[1723100373544,0.34,154.51,154.47,21.6828]
[1723100374427,0.67434309,154.51,154.47,21.6828]
[1723100379650,0.34,154.51,154.47,21.6828]
[1723100379820,0.34,154.51,154.47,6.3359]
[1723100381143,0.17,154.51,154.47,6.3359]
[1723100381346,0.50434309,154.51,154.47,6.3359]
[1723100382027,0.17,154.51,154.47,6.3359]
[1723100382228,0.17,154.51,154.48,15.952]
[1723100382445,0.17,154.52,154.48,15.952]
[1723100382840,45.17,154.52,154.48,15.952]
[1723100383221,45.50434309,154.52,154.48,15.952]
[1723100383422,45.17,154.52,154.48,15.952]
[1723100384324,0.17,154.51,154.48,15.952]
[1723100385143,0.17,154.52,154.48,15.952]
[1723100385644,6.6416,154.52,154.48,15.952]
[1723100386222,45.0,154.51,154.48,15.952]
[1723100386428,0.17,154.5,154.48,15.952]
[1723100386647,0.17,154.51,154.48,15.952]
[1723100387933,389.1,154.55,154.48,15.952]
[1723100389240,45.0,154.54,154.48,15.952]
[1723100389444,0.17,154.53,154.48,15.952]
[1723100390245,6.8114,154.53,154.48,15.952]
[1723100390440,45.0,154.52,154.48,15.952]
[1723100390642,0.34,154.51,154.48,15.952]
[1723100393857,389.1,154.54,154.48,15.952]
[1723100395249,45.17,154.53,154.48,15.952]
[1723100395454,0.17,154.52,154.48,15.952]
[1723100395656,2.56308707,154.57,154.49,6.4492]
[1723100395864,389.1,154.59,154.49,6.4492]
[1723100396193,0.33434309,154.58,154.49,6.4492]
[1723100396342,395.5687,154.59,154.49,6.4492]
[1723100396542,6.80374309,154.58,154.49,6.4492]
[1723100396739,0.33434309,154.57,154.49,6.4492]
[1723100396963,0.17,154.56,154.49,6.4492]
[1723100397137,0.34,154.56,154.49,6.4492]
[1723100397862,0.33434309,154.55,154.49,6.4492]
[1723100398162,0.34,154.54,154.49,6.4492]
[1723100398463,0.34,154.53,154.49,6.4492]
[1723100399042,45.34,154.53,154.49,6.4492]
[1723100399255,0.33434309,154.52,154.49,6.4492]
[1723100399437,0.34,154.51,154.49,6.4492]
[1723100399945,0.17,154.51,154.49,6.4492]
[1723100400146,0.34,154.52,154.49,6.4492]
[1723100400343,0.17,154.52,154.49,6.4492]
[1723100400543,389.1,154.55,154.49,6.4492]
[1723100401144,389.1,154.55,154.5,15.0487]
[1723100401565,6.75131472,154.59,154.5,15.0487]
[1723100401773,30.74485343,154.6,154.5,15.0487]
[1723100401774,30.74485343,154.6,154.51,6.0112]
[1723100402097,37.54779652,154.6,154.51,6.0112]
[1723100402275,28.1,154.58,154.51,6.0112]
[1723100402446,28.1,154.56,154.51,6.0112]
[1723100403467,0.34,154.55,154.51,6.0112]
[1723100404266,0.34,154.56,154.51,6.0112]
[1723100404442,0.17,154.55,154.51,6.0112]
[1723100404648,0.17,154.56,154.51,6.0112]
[1723100405473,28.1,154.58,154.51,6.0112]
[1723100405769,0.33434309,154.57,154.51,6.0112]
[1723100406562,28.1,154.56,154.51,6.0112]
[1723100406753,45.34,154.55,154.51,6.0112]
[1723100406947,28.1,154.54,154.51,6.0112]
[1723100407149,28.1,154.52,154.51,6.0112]
[1723100407375,73.44,154.52,154.51,6.0112]
[1723100408868,79.9116,154.52,154.47,6.0398]
[1723100409071,28.1,154.5,154.47,6.0398]
[1723100409275,0.34,154.49,154.47,6.0398]
[1723100409653,45.34,154.49,154.47,6.0398]
[1723100410883,389.1,154.55,154.47,6.0398]
[1723100411077,389.1,154.55,154.48,16.1088]
[1723100411395,6.74748198,154.61,154.51,6.0842]
[1723100411685,28.43434309,154.6,154.51,6.0842]
[1723100412087,28.1,154.6,154.51,6.0842]
[1723100412403,2.66238861,154.61,154.53,6.6441]
[1723100412554,28.1,154.62,154.53,6.6441]
[1723100412752,28.43434309,154.62,154.53,6.6441]
[1723100412957,35.76981417,154.62,154.53,6.6441]
[1723100413151,28.1,154.6,154.53,6.6441]
[1723100413359,28.43434309,154.6,154.53,6.6441]
[1723100413567,34.90264309,154.6,154.53,6.6441]
[1723100413880,28.1,154.58,154.53,6.6441]
[1723100414078,28.1,154.54,154.53,6.6441]
[1723100414268,73.27,154.54,154.53,6.6441]
[1723100414464,73.44,154.54,154.53,6.6441]
[1723100414784,0.34,154.54,154.53,6.6441]
[1723100415882,260.34272535,154.63,154.53,6.6441]
[1723100416182,28.1,154.62,154.53,6.6441]
[1723100417458,28.1,154.6,154.53,6.6441]
[1723100417974,45.34,154.59,154.53,6.6441]
[1723100418181,0.34,154.59,154.53,6.6441]
[1723100419985,0.17,154.59,154.54,1.29400816]
[1723100420183,0.17,154.59,154.53,6.6441]
[1723100420387,7.33547108,154.62,154.55,6.5235]
[1723100421489,7.66981417,154.62,154.55,6.5235]
[1723100421699,0.17,154.61,154.55,6.5235]
[1723100422374,0.50434309,154.61,154.55,6.5235]
[1723100422574,52.14234309,154.61,154.55,6.5235]
[1723100422869,6.4683,154.6,154.55,6.5235]
[1723100423071,45.34,154.59,154.55,6.5235]
[1723100423273,45.34,154.61,154.55,6.5235]
[1723100423469,6.4689,154.59,154.55,6.5235]
[1723100423672,45.50434309,154.58,154.55,6.5235]
[1723100423869,0.17,154.57,154.55,6.5235]
[1723100424763,45.34,154.58,154.55,6.5235]
[1723100426167,0.34,154.58,154.55,6.5235]
[1723100426890,43.32500005,154.58,154.51,6.087]
[1723100427069,6.4704,154.55,154.51,6.087]
[1723100427268,45.34,154.54,154.51,6.087]
[1723100428591,0.34,154.54,154.51,6.087]
[1723100429988,0.34,154.53,154.51,6.087]
[1723100430194,45.34,154.55,154.51,6.087]
[1723100431173,0.34,154.55,154.51,6.087]
[1723100433293,6.8105,154.55,154.51,6.087]
[1723100433592,45.0,154.54,154.51,6.087]
[1723100433791,0.34,154.53,154.51,6.087]
[1723100433965,0.17,154.52,154.51,6.087]
[1723100434491,45.0,154.56,154.51,6.087]
[1723100434699,3.36217849,154.6,154.51,6.087]
[1723100434700,6.80294309,154.6,154.51,6.087]
[1723100434889,389.1,154.61,154.52,16.0109]
[1723100435203,389.1,154.61,154.53,6.4576]
[1723100435792,395.568,154.61,154.53,6.4576]
[1723100436374,6.80264309,154.6,154.53,6.4576]
[1723100436578,6.4683,154.6,154.53,6.4576]
[1723100436970,6.4689,154.59,154.53,6.4576]
[1723100437199,20.33434309,154.63,154.53,6.4576]
[1723100437402,6.4683,154.6,154.53,6.4576]
[1723100437572,45.34,154.59,154.53,6.4576]
[1723100437898,51.8087,154.59,154.53,6.4576]
[1723100438097,45.34,154.59,154.53,6.4576]
[1723100438296,0.34,154.59,154.53,6.4576]
[1723100438596,0.50434309,154.59,154.53,6.4576]
[1723100438792,0.17,154.59,154.53,6.4576]
[1723100438992,0.50434309,154.59,154.53,6.4576]
[1723100439181,0.17,154.59,154.53,6.4576]
[1723100439871,28.36,154.59,154.53,6.4576]
[1723100440292,0.17,154.58,154.53,6.4576]
[1723100441688,45.17,154.58,154.53,6.4576]
[1723100441892,0.17,154.57,154.53,6.4576]
[1723100444903,28.36,154.57,154.53,6.4576]
[1723100445123,0.17,154.56,154.53,6.4576]
[1723100445706,0.34,154.57,154.53,6.4576]
[1723100445913,0.34,154.58,154.53,6.4576]
[1723100446117,28.19,154.57,154.53,6.4576]
[1723100446422,45.34,154.56,154.53,6.4576]
[1723100447712,28.19,154.55,154.53,6.4576]
[1723100447918,45.34,154.54,154.53,6.4576]
[1723100448299,0.34,154.54,154.53,6.4576]
[1723100448701,45.34,154.54,154.53,6.4576]
[1723100449527,0.34,154.54,154.53,6.4576]
[1723100449703,45.34,154.54,154.53,6.4576]
[1723100450109,45.34,154.54,154.5,6.0189]
[1723100450407,28.19,154.52,154.5,6.0189]
[1723100450619,45.34,154.51,154.5,6.0189]
[1723100452115,0.34,154.51,154.5,6.0189]
[1723100452525,28.19,154.56,154.5,6.0189]
[1723100453838,0.17,154.55,154.5,6.0189]
[1723100454134,28.19,154.56,154.5,6.0189]
[1723100455106,28.19,154.6,154.52,6.6536]
[1723100455305,402.90297108,154.62,154.52,6.6536]
[1723100455306,424.62547108,154.62,154.52,6.6536]
[1723100455506,424.62547108,154.62,154.54,6.1217]
[1723100456134,0.33434309,154.61,154.54,6.1217]
[1723100456333,28.19,154.6,154.54,6.1217]
[1723100456806,28.19,154.58,154.54,6.1217]
[1723100457005,0.34,154.57,154.54,6.1217]
[1723100457627,45.34,154.57,154.54,6.1217]
[1723100458825,51.8096,154.57,154.54,6.1217]
[1723100459003,45.34,154.57,154.54,6.1217]
[1723100459409,0.34,154.57,154.54,6.1217]
[1723100460533,5.47821947,154.61,154.54,6.1217]
[1723100460839,395.567,154.63,154.54,6.1217]
[1723100461034,6.4675,154.62,154.54,6.1217]
[1723100461436,6.80134309,154.63,154.54,6.1217]
[1723100461728,14.45396201,154.63,154.54,6.1217]
[1723100462141,7.98696201,154.63,154.54,6.1217]
[1723100462430,7.98696201,154.63,154.55,22.8374]
[1723100463435,0.17,154.62,154.55,22.8374]
[1723100463639,45.34,154.62,154.55,22.8374]
[1723100463842,53.6613051,154.62,154.55,22.8374]
[1723100464134,6.4687,154.59,154.55,22.8374]
[1723100464437,0.34,154.58,154.55,22.8374]
[1723100471147,0.17,154.58,154.55,22.8374]
[1723100471440,7.98696201,154.61,154.55,22.8374]
[1723100471643,0.17,154.6,154.55,22.8374]
[1723100472932,45.34,154.6,154.55,22.8374]
[1723100474729,81.92434309,154.6,154.55,22.8374]
[1723100474943,6.4691,154.58,154.55,22.8374]
[1723100475239,45.17,154.57,154.55,22.8374]
[1723100475420,45.34,154.57,154.55,22.8374]
[1723100476618,0.34,154.57,154.55,22.8374]
[1723100477515,7.98696201,154.6,154.55,22.8374]
[1723100477720,28.18,154.61,154.55,22.8374]
[1723100479726,45.0,154.6,154.55,22.8374]
[1723100479921,0.17,154.59,154.55,22.8374]
[1723100481843,0.6470398,154.56,154.55,22.8374]
[1723100482049,0.9870398,154.56,154.55,22.8374]
[1723100484039,0.6470398,154.56,154.55,22.8374]
[1723100484738,389.1,154.63,154.55,22.8374]
[1723100485048,60.06161634,154.64,154.55,22.8374]
[1723100485343,14.45396201,154.63,154.55,22.8374]
[1723100485926,0.17,154.62,154.55,22.8374]
[1723100486121,14.45396201,154.63,154.56,6.4288]
[1723100486122,7.98696201,154.63,154.56,6.4288]
[1723100486321,7.98696201,154.63,154.57,1.29375489]
[1723100486625,389.1,154.67,154.6,6.4224]
[1723100487553,20.33434309,154.66,154.6,6.4224]
[1723100487745,6.4678,154.61,154.6,6.4224]
[1723100487954,0.33434309,154.63,154.56,6.4772]
[1723100488255,6.4687,154.59,154.56,6.4772]
[1723100488428,6.4683,154.6,154.56,6.4772]